Cogmind - Beta 16 @@@ ROGUE MODE // 2025.12.23 @ 12:46:47 Player: jumpy Result: Destroyed by P-80 Master with Gamma Rifle Performance ------------- Evolutions (8) 4000 Regions Visited (19) 3800 Robots Destroyed (171) 855 Value Destroyed (7177) 7177 Prototype IDs (21) 420 Alien Tech Used (2) 400 Bonus (5875) 5875 TOTAL SCORE: 22527 Bonus ------- High Alert Combat Kills 358 Follower Combat Kills 2252 Met Data Miner 300 Met R17 at Cetus 500 Met R17 at Research 2000 Scanned by Researcher 500 Friendly Fire -35 Cogmind --------- Core Integrity 0/1450 Matter 293/300 Energy 98/100 System Corruption 10% Temperature Cool (0) Movement Core (50) Location -2/Research Parts ------- > --- POWER (2) -------- (None) > --- PROPULSION (6) --- (None) > --- UTILITY (12) ----- (None) > --- WEAPON (3) ------- (None) > --- INVENTORY (5) ---- Centrium Wheel Centrium Medium Armor Plating Centrium Medium Armor Plating Compact HERF Cannon Peak State ------------ > --- POWER ------------ Light Antimatter Reactor Light Particle Reactor > --- PROPULSION ------- Myomer Leg Myomer Leg Myomer Leg Myomer Leg Biometal Leg Centrium Leg > --- UTILITY ---------- Advanced Cryofiber Web Advanced Heat Sink Improved Targeting Computer Improved Targeting Computer Advanced Target Analyzer Core Analyzer Experimental Core Analyzer Advanced Transmission Jammer Centrium Medium Armor Plating Centrium Medium Armor Plating Advanced Shield Generator Improved Hacking Suite > --- WEAPON ----------- Matter Neutralizer Long-range Phase Cannon Linear Accelerator > --- INVENTORY -------- Light Antimatter Reactor Centrium Wheel Centrium Medium Armor Plating Centrium Medium Armor Plating Compact HERF Cannon [Rating: 160] Favorites ----------- Power F-cell Engine Engine F-cell Engine Power Core Neutrino Core Reactor Light Antimatter Reactor Propulsion Improved Aluminum Leg Treads Improved Treads Leg Improved Aluminum Leg Wheel Wheel Hover Unit Antigrav System Utility Improved Targeting Computer Device Advanced Heat Sink Storage Large Storage Unit Processor Improved Targeting Computer Hackware Improved Hacking Suite Protection Improved Medium Armor Plating Weapon Ion Cannon Energy Gun Plasma Rifle Energy Cannon Ion Cannon Ballistic Gun Assault Rifle Ballistic Cannon Advanced Assault Cannon Launcher Advanced EMP Blaster Slashing Weapon Centrium Greatsword Piercing Weapon Spear Build | -11 -10 -9 -8 -8 -7 -6 -6 -6 -6 -5 -5 -4 -4 -4 -4 -4 -3 -3 -2 ------- Run | Yrd Mat Mat Mat Sto Fac Fac Low Low Dat Pro Fac Fac Was Fac Ext Cet Res Qua Res Slots Evolved 16 | . . 2 2 . 2 2 . . . . 2 2 . . . . 2 . 2 Power 1 | . . . . . . . . . . . 1 . . . . . . . . Propulsion 4 | . . 1 1 . . . . . . . . 2 . . . . . . . Utility 10 | . . 1 1 . 1 2 . . . . 1 . . . . . 2 . 2 Weapon 1 | . . . . . 1 . . . . . . . . . . . . . . Parts Attached 162 | 7 . 10 5 17 7 4 3 2 . 1 23 1 1 8 41 4 10 9 9 Power 18 | 1 . 1 2 1 . 1 . . . . 3 . . 2 4 1 2 . . Engine 7 | 1 . 1 1 1 . 1 . . . . 2 . . . . . . . . Core 7 | . . . 1 . . . . . . . 1 . . 2 3 . . . . Reactor 4 | . . . . . . . . . . . . . . . 1 1 2 . . Propulsion 49 | 2 . 2 1 8 1 . . . . . 10 . 1 1 15 . 2 2 4 Treads 3 | . . . . . . . . . . . . . 1 . 2 . . . . Leg 38 | 2 . 2 1 6 1 . . . . . 10 . . . 10 . 2 2 2 Wheel 5 | . . . . 2 . . . . . . . . . . 3 . . . . Hover 3 | . . . . . . . . . . . . . . 1 . . . . 2 Flight . | . . . . . . . . . . . . . . . . . . . . Utility 59 | 2 . 2 2 5 5 2 2 . . 1 5 . . 4 12 3 3 6 5 Device 22 | 1 . . 1 2 1 . . . . 1 4 . . 1 6 1 1 1 2 Storage 5 | 1 . 1 . . 1 . . . . . . . . . . . . 1 1 Processor 18 | . . 1 1 2 1 2 2 . . . . . . 2 1 . 2 2 2 Hackware 2 | . . . . . . . . . . . . . . 1 . . . 1 . Protection 12 | . . . . 1 2 . . . . . 1 . . . 5 2 . 1 . Artifact . | . . . . . . . . . . . . . . . . . . . . Weapon 36 | 2 . 5 . 3 1 1 1 2 . . 5 1 . 1 10 . 3 1 . Energy Gun 4 | . . . . . . . . . . . . . . . 4 . . . . Energy Cannon 14 | . . 4 . 1 . 1 1 1 . . 1 . . . 3 . 1 1 . Ballistic Gun 2 | 2 . . . . . . . . . . . . . . . . . . . Ballistic Cannon 8 | . . . . . 1 . . . . . 3 . . . 2 . 2 . . Launcher 5 | . . 1 . 2 . . . 1 . . 1 . . . . . . . . Special Weapon . | . . . . . . . . . . . . . . . . . . . . Impact Weapon . | . . . . . . . . . . . . . . . . . . . . Slashing Weapon 2 | . . . . . . . . . . . . . . 1 1 . . . . Piercing Weapon 1 | . . . . . . . . . . . . 1 . . . . . . . Special Melee Weapon . | . . . . . . . . . . . . . . . . . . . . Unidentified Prototypes 11 | . . 2 . 1 . 1 . . . . . . . 1 . 1 1 3 1 Corrupted Parts 9 | . . . . . . . . . . . 6 . . . 1 . . 2 . System Corruption 62 | . . . . . . . . . . . 48 . . . 7 . . 7 . Parts Lost 61 | . . . . 10 . . . . . 2 21 . 1 2 8 1 1 2 13 Power 5 | . . . . 1 . . . . . . 1 . . . . . . . 3 Propulsion 26 | . . . . 5 . . . . . 1 11 . . 1 2 . 1 1 4 Utility 19 | . . . . 2 . . . . . . 6 . . 1 5 1 . 1 3 Weapon 11 | . . . . 2 . . . . . 1 3 . 1 . 1 . . . 3 Highest Loss Streak 12 | . . . . 7 . . . . . 1 7 . 1 2 4 1 1 2 12 To Critical Strikes . | . . . . . . . . . . . . . . . . . . . . Average Backups 9 | 4 7 10 10 12 13 14 15 15 15 14 13 5 4 3 2 5 4 5 4 Power 2 | . 1 1 2 2 2 3 4 4 4 4 2 1 1 1 1 1 1 1 . Propulsion 1 | 1 3 2 1 . 1 2 2 2 2 2 2 . . . . 3 1 1 1 Utility 3 | 1 2 2 2 5 6 5 4 4 4 4 4 3 2 . . . 1 1 2 Weapon 2 | . . 4 5 4 3 3 4 5 5 4 4 1 . 1 . . . 1 1 Tool/Special . | . . . . . . . . . . . . . . . . . . . . Unused Backups 16 | 1 1 1 2 1 1 1 . . . . 1 . 1 3 . . . 1 2 Power 5 | . . 1 2 . . 1 . . . . . . . 1 . . . . . Propulsion 3 | . 1 . . . . . . . . . . . . 1 . . . . 1 Utility 5 | . . . . . . . . . . . 1 . 1 1 . . . 1 1 Weapon 3 | 1 . . . 1 1 . . . . . . . . . . . . . . Tool/Special . | . . . . . . . . . . . . . . . . . . . . Average Slot Usage (%) 85 | . 100 99 95 83 98 98 100 100 100 99 94 . 3 11 54 98 94 99 78 Engine 4 | . 14 11 6 7 7 6 6 6 6 6 7 . . . . . . . . Core 1 | . . . 2 . . . . . . . 2 . . 1 4 5 3 . . Reactor 1 | . . . . . . . . . . . . . . . 2 5 4 9 6 Leg 22 | . 28 33 36 22 30 26 26 26 26 25 21 . . . 7 31 28 27 21 Device 11 | . 14 11 13 7 7 6 6 6 6 6 12 . . 2 12 24 26 20 13 Storage 4 | . 14 11 9 9 7 6 6 6 6 6 4 . . . . . . . . Processor 13 | . . 10 9 11 14 24 26 26 26 26 19 . . 4 1 5 5 12 14 Protection 5 | . . . . 3 7 6 6 6 6 6 4 . . . 7 10 9 8 6 Energy Cannon 10 | . . 18 18 17 15 13 13 13 13 18 8 . . . 5 10 9 9 6 Ballistic Cannon 3 | . . . . . 6 6 5 6 6 1 6 . . . 2 5 4 4 3 Peak Build Rating 160 | 7 8 17 24 30 39 47 49 50 50 51 79 5 20 31 98 113 130 132 160 Average Rating 57 | 6 7 15 20 22 36 44 48 49 50 49 66 1 5 16 52 107 121 126 122 On Entrance 44 | . 7 8 17 24 28 39 47 49 50 50 50 1 5 20 31 98 113 130 123 Avg Prop Armor Cover (%) 24 | . . . . 2 . . . . . . 9 . 41 40 3 . . . . Naked Turns 168 | . . . . . . . . . . . 13 24 26 . 4 . . . 101 Heaviest Build 91 | 15 15 38 40 46 57 63 65 64 64 66 82 2 2 11 75 76 80 80 91 Greatest Support 158 | 20 20 30 40 51 49 49 49 49 49 49 80 3 3 11 115 115 125 140 158 Greatest Overweight (x) 10 | . . 1 . 10 1 1 1 1 1 1 7 . . . 10 . . . . Average Overweight (x) . | . . . . . . 1 1 1 1 1 . . . . 1 . . . . Largest Inventory Capacity 15 | 8 8 15 15 15 15 15 15 15 15 15 15 5 5 5 5 5 5 5 10 Average Capacity 10 | 7 8 14 15 15 15 15 15 15 15 15 14 5 5 5 5 5 5 5 5 Most Carried 15 | 5 8 12 15 15 15 15 15 15 15 15 15 5 5 5 5 5 5 5 5 Average Carried 9 | 4 7 10 10 12 13 14 14 15 15 14 13 4 4 4 2 4 4 4 4 Final Capacity 15 | 8 8 15 15 15 15 15 15 15 15 15 5 5 5 5 5 5 5 5 5 Final Carried 15 | 5 8 12 15 12 15 15 15 15 15 15 5 4 5 5 5 5 5 5 4 Class Distribution -------------------- 29% | Gunner 21% | Mutant 16% | Scavenger-Gunner 12% | Scavenger-Tank 8% | Scavenger-Mutant 5% | Commander-Tank 4% | Commander-Gunner Dominant Class ---------------- Mutant | -10/Materials Mutant | -9/Materials Scavenger-Mutant | -8/Materials Mutant | -8/Storage Gunner | -7/Factory Gunner | -6/Factory Gunner | -6/Lower Caves Gunner | -6/Lower Caves Gunner | -6/Data Miner Gunner | -5/Proximity Caves Scavenger-Gunner | -5/Factory Mutant | -4/Factory Mutant | -4/Waste Mutant | -4/Factory Commander-Tank | -4/Extension Scavenger-Tank | -4/Cetus Scavenger-Tank | -3/Research Scavenger-Gunner | -3/Quarantine Scavenger-Gunner | -2/Research Resources | -11 -10 -9 -8 -8 -7 -6 -6 -6 -6 -5 -5 -4 -4 -4 -4 -4 -3 -3 -2 ----------- Run | Yrd Mat Mat Mat Sto Fac Fac Low Low Dat Pro Fac Fac Was Fac Ext Cet Res Qua Res Matter Collected 3943 | 474 18 189 71 245 242 . 83 128 . 34 483 . . 184 668 125 144 180 675 Remotely . | . . . . . . . . . . . . . . . . . . . . Salvage Created 7385 | 321 60 397 412 1041 454 . 69 138 . 268 1568 . . 107 490 178 301 496 1085 Parts 365 | 27 6 26 24 40 23 . 1 8 . 11 78 . . 9 16 8 9 32 47 Haulers Intercepted 5 | . . 2 2 1 . . . . . . . . . . . . . . . Recyclers Shooed 4 | . 1 . . . . . . . . . . . . . 1 . . . 2 Parts Field Recycled . | . . . . . . . . . . . . . . . . . . . . Retrieved Matter . | . . . . . . . . . . . . . . . . . . . . Parts Self-Destructed 8 | . . . . . . . 1 5 . 2 . . . . . . . . . Prevented 7 | . . . . . . . . . . 7 . . . . . . . . . Parts Restored . | . . . . . . . . . . . . . . . . . . . . Kills | -11 -10 -9 -8 -8 -7 -6 -6 -6 -6 -5 -5 -4 -4 -4 -4 -4 -3 -3 -2 ------- Run | Yrd Mat Mat Mat Sto Fac Fac Low Low Dat Pro Fac Fac Was Fac Ext Cet Res Qua Res Combat Hostiles Destroyed 130 | . 1 11 4 21 8 . 1 8 . 7 37 . . 2 6 3 3 8 10 Melee 3 | . . . . . . . . . . . . . . 2 1 . . . . Guns 1 | . 1 . . . . . . . . . . . . . . . . . . Cannons 67 | . . 5 4 10 8 . 1 5 . 2 10 . . . 2 3 2 7 8 AOE 46 | . . 6 . 11 . . . 3 . 3 23 . . . . . . . . Classes Destroyed 18 | 3 1 4 1 2 1 . . . . 1 3 . . . 1 . . 1 . Worker 8 | 2 1 1 . 1 1 . . . . . 2 . . . . . . . . Builder 4 | . . . 1 1 . . . . . . 2 . . . . . . . . Tunneler 9 | 9 . . . . . . . . . . . . . . . . . . . Hauler 5 | . . 2 2 1 . . . . . . . . . . . . . . . Recycler 10 | 1 . . 1 2 1 . . . . . . . . . . . 1 . 4 Mechanic 1 | . . . . 1 . . . . . . . . . . . . . . . Operator 2 | . . 1 . . 1 . . . . . . . . . . . . . . Watcher 4 | . . . . . . . . . . . 2 . . . . 1 . . 1 Swarmer 33 | . . 6 . 4 . . . 7 . 4 12 . . . . . . . . Grunt 42 | . 1 2 2 14 5 . . . . . 11 . . . 2 . 3 1 1 Brawler 1 | . . . . . . . . . . . 1 . . . . . . . . Protector 1 | . . . . 1 . . . . . . . . . . . . . . . Researcher 1 | . . . . . . . . . . . . . . . . . . 1 . Sentry 19 | . . 3 2 2 2 . 1 . . 1 3 . . . 3 . . . 2 Hunter 8 | . . . . . . . . . . 2 4 . . . . . . 2 . Programmer 19 | . . . . . 1 . . 1 . . 3 . . 2 . . . 5 7 Behemoth 1 | . . . . . . . . . . . . . . . 1 . . . . Cetus Guard 3 | . . . . . . . . . . . . . . . . 3 . . . Assembled 3 | . . . . . . . . . . . 3 . . . . . . . . Best Kill Streak 11 | 4 1 4 2 11 2 . 1 4 . 4 11 . . 2 3 2 2 3 4 Combat Bots Only 9 | . 1 3 1 9 2 . 1 4 . 4 9 . . 2 3 1 2 3 4 Max Kills in Single Turn 8 | 1 1 2 2 5 1 . 1 3 . 3 8 . . 1 1 1 1 1 1 Gunslinging . | . . . . . . . . . . . . . . . . . . . . Exploded 8 | . . 2 . 4 . . . 3 . 3 8 . . . . . . . . Melee 1 | . . . . . . . . . . . . . . 1 1 . . . . Uniques/NPCs Destroyed . | . . . . . . . . . . . . . . . . . . . . Combat | -11 -10 -9 -8 -8 -7 -6 -6 -6 -6 -5 -5 -4 -4 -4 -4 -4 -3 -3 -2 -------- Run | Yrd Mat Mat Mat Sto Fac Fac Low Low Dat Pro Fac Fac Was Fac Ext Cet Res Qua Res Hostile Shots Fired 992 | . 1 48 11 105 34 . 18 23 . 44 204 . 3 22 93 17 26 109 234 Missed 335 | . . 12 2 36 19 . 3 9 . 14 58 . . 7 24 13 10 42 86 Hits 657 | . 1 36 9 69 15 . 15 14 . 30 146 . 3 15 69 4 16 67 148 Melee 5 | . . . . . . . . . . . 2 . 3 . . . . . . Projectile 652 | . 1 36 9 69 15 . 15 14 . 30 144 . . 15 69 4 16 67 148 AOE 21 | . . . . . . . . . . . 21 . . . . . . . . Critical Strikes 35 | . . 1 . 4 . . . . . 2 7 . 2 . 2 3 1 3 10 Part Disruptions 1 | . . . . . . . . . . . . . . . . . . . 1 Damage Taken 13454 | . 10 401 147 1073 143 117 103 205 . 424 3573 . 120 306 1985 230 527 1089 3001 Core 3206 | . . 48 . 262 . . 5 13 . 38 650 . 120 139 364 . . 105 1462 Absorbed by Shields 460 | . . . . . . . . . . . 216 . . . . . . . 244 Regen/Repaired (Parts) 164 | . . . . . . . . . . . . . . . . . . . 164 Core Remaining (%) 78 | 100 100 88 . 52 100 . . . . 93 35 . . . . 45 . 91 . Volleys Fired 369 | 34 4 32 23 51 17 . 6 11 . 14 63 . . . 26 11 17 30 30 Largest 3 | 2 2 2 2 2 3 . 3 3 . 3 3 . . . 3 3 3 3 3 Hottest 265 | 40 40 136 136 136 160 . 190 190 . 230 230 . . . 265 265 265 264 264 Shots Fired 768 | 68 8 59 46 87 51 . 10 27 . 20 99 . . . 62 33 51 64 83 Gun 111 | 68 8 8 . . . . . . . . . . . . 27 . . . . Cannon 629 | . . 46 46 80 51 . 10 25 . 19 86 . . . 35 33 51 64 83 Launcher 28 | . . 5 . 7 . . . 2 . 1 13 . . . . . . . . Special . | . . . . . . . . . . . . . . . . . . . . Kinetic 218 | 68 8 8 . . 17 . 2 8 . 2 27 . . . 10 11 17 16 24 Thermal 489 | . . 46 46 80 34 . 8 17 . 7 50 . . . 44 22 34 42 59 Explosive 21 | . . 5 . 7 . . . 2 . 1 6 . . . . . . . . Electromagnetic 40 | . . . . . . . . . . 10 16 . . . 8 . . 6 . Robot Hit Streak 40 | 5 6 11 13 10 10 . 16 35 . 40 16 . . . 12 9 10 14 19 Robot Miss Streak 7 | 7 2 3 4 3 4 . . . . 1 2 . . . 5 2 2 3 2 Penetration Max . | . . . . . . . . . . . . . . . . . . . . Secondary Targets . | . . . . . . . . . . . . . . . . . . . . Shots Hit Robots 488 | 36 5 33 30 59 31 . 6 19 . 17 56 . . 3 47 18 34 34 60 Core Hits 282 | 13 3 16 9 44 15 . 2 9 . 7 79 . . 2 16 11 15 16 25 Critical Kills 4 | 1 . . . . . . . . . . . . . . . . 1 . 2 Critical Parts Destroyed . | . . . . . . . . . . . . . . . . . . . . Critical Strikes 17 | 1 . . . . 1 . . . . . 3 . . . 4 . 1 3 4 Burn 2 | . . . . . . . . . . . . . . . 2 . . . . Meltdown 3 | . . . . . . . . . . . . . . . . . 1 . 2 Destroy 1 | 1 . . . . . . . . . . . . . . . . . . . Blast 9 | . . . . . 1 . . . . . 3 . . . 1 . . 2 2 Corrupt 1 | . . . . . . . . . . . . . . . . . . 1 . Sever 1 | . . . . . . . . . . . . . . . 1 . . . . Melee Attacks 7 | . . . . . . . . . . . . . . 3 4 . . . . Impact . | . . . . . . . . . . . . . . . . . . . . Slashing 7 | . . . . . . . . . . . . . . 3 4 . . . . Piercing . | . . . . . . . . . . . . . . . . . . . . Sneak Attacks . | . . . . . . . . . . . . . . . . . . . . Combat Hostiles . | . . . . . . . . . . . . . . . . . . . . Follow-up Attacks . | . . . . . . . . . . . . . . . . . . . . Damage Inflicted 20709 | 447 63 1072 638 2172 763 . 167 866 . 758 5785 . . 213 1509 724 1356 1560 2616 Guns 1077 | 447 63 62 . . . . . . . . . . . . 505 . . . . Cannons 13056 | . . 578 638 1231 763 . 167 537 . 494 1697 . . . 712 724 1356 1560 2599 Explosions 6052 | . . 432 . 939 . . . 329 . 264 4088 . . . . . . . . Melee 481 | . . . . . . . . . . . . . . 197 284 . . . . Ramming 43 | . . . . 2 . . . . . . . . . 16 8 . . . 17 Kinetic 3823 | 447 63 62 . . 283 . 23 122 . 24 615 . . . 212 223 569 456 724 Thermal 9894 | . . 578 638 1231 480 . 144 415 . 195 1335 . . . 794 501 787 921 1875 Explosive 4589 | . . 432 . 939 . . . 329 . 264 2625 . . . . . . . . Electromagnetic 1879 | . . . . . . . . . . 275 1210 . . . 211 . . 183 . Impact . | . . . . . . . . . . . . . . . . . . . . Slashing 481 | . . . . . . . . . . . . . . 197 284 . . . . Piercing . | . . . . . . . . . . . . . . . . . . . . Highest Corruption 53 | . . . . . . . . 1 1 1 53 . . . 7 7 . 14 10 Average Corruption 9 | . . . . . . . . 1 1 1 37 . . . 7 7 . 3 5 Corruption Purged . | . . . . . . . . . . . . . . . . . . . . Corruption Blocked . | . . . . . . . . . . . . . . . . . . . . Effects 134 | . . . . . . . . 4 1 2 48 . . . 40 9 . 17 13 Message Errors 25 | . . . . . . . . . . 1 8 . . . 7 3 . 4 2 Matter Fused 24 | . . . . . . . . 2 . . 9 . . . 6 . . 2 5 Heat Flow Errors 17 | . . . . . . . . 2 . . 4 . . . 7 1 . 1 2 Energy Discharges 19 | . . . . . . . . . 1 . 5 . . . 7 3 . 2 1 Parts Rejected 5 | . . . . . . . . . . . 3 . . . . 1 . . 1 Parts Fused 1 | . . . . . . . . . . . . . . . 1 . . . . Data Loss (minor) 15 | . . . . . . . . . . 1 4 . . . 5 1 . 3 1 Data Loss (major) 9 | . . . . . . . . . . . 1 . . . 4 . . 3 1 Misfires 3 | . . . . . . . . . . . 1 . . . 1 . . 1 . Alerts 2 | . . . . . . . . . . . 1 . . . 1 . . . . Misdirections 3 | . . . . . . . . . . . 3 . . . . . . . . Weapon Failures 11 | . . . . . . . . . . . 9 . . . 1 . . 1 . Overload Shots . | . . . . . . . . . . . . . . . . . . . . Overflow Damage 492 | . . 72 31 13 35 . . 40 . 25 101 . . 7 15 . . 52 101 Projectiles 315 | . . 12 31 13 35 . . 38 . 25 8 . . . . . . 52 101 Explosions 155 | . . 60 . . . . . 2 . . 93 . . . . . . . . Melee 22 | . . . . . . . . . . . . . . 7 15 . . . . Knockbacks 24 | . . . . . 1 . . 2 . . 5 . . . 2 . 2 3 9 Impact 1 | . . . . . . . . . . . . . . . 1 . . . . Kinetic 22 | . . . . . 1 . . 2 . . 5 . . . 1 . 2 3 8 Secondary 1 | . . . . . . . . . . . . . . . . . . . 1 Self-Inflicted Damage 310 | . . . . 46 . . . . . 6 243 . . 8 . . . . 7 Shots 11 | . . . . 1 . . . . . 1 9 . . . . . . . . Rammed 10 | . . . . . . . . . . . . . . 3 4 . . . 3 Targets Rammed 11 | . . . . 1 . . . . . . . . . 3 4 . . . 3 Kicked 1 | . . . . 1 . . . . . . . . . . . . . . . Crushed . | . . . . . . . . . . . . . . . . . . . . Highest Temperature 447 | . . 381 315 425 135 . 54 175 . 63 186 . . . 447 . . . 248 Average Temperature 105 | . . 119 93 124 23 . 29 53 . 33 56 . . . 158 . . . 104 Received Heat Transfer 2348 | . 6 132 81 666 54 . 24 . . 18 358 . . 30 625 9 45 . 300 Effects 4 | . . . . 4 . . . . . . . . . . . . . . . Shutdowns 2 | . . . . 2 . . . . . . . . . . . . . . . Interference 2 | . . . . 2 . . . . . . . . . . . . . . . Siege Activations . | . . . . . . . . . . . . . . . . . . . . Martial Activations . | . . . . . . . . . . . . . . . . . . . . Shielding Activations . | . . . . . . . . . . . . . . . . . . . . Robots Disrupted 1 | . . . . . . . . . . . 1 . . . . . . . . Combat Hostiles 1 | . . . . . . . . . . . 1 . . . . . . . . Robots Corrupted 9 | . . . . . . . . . . 2 4 . . . 2 . . 1 . Combat Hostiles 9 | . . . . . . . . . . 2 4 . . . 2 . . 1 . Parts Fried 12 | . . . . . . . . . . 6 3 . . . 1 . . 2 . Impact Corruptions . | . . . . . . . . . . . . . . . . . . . . Robots Melted 4 | . . . . . . . . . . . . . . . 1 . 1 . 2 Combat Hostiles 4 | . . . . . . . . . . . . . . . 1 . 1 . 2 Parts Melted 23 | . . 4 2 1 2 . 1 3 . . 3 . . . . 1 2 . 4 Heat Transferred 13675 | . . 1036 1147 2109 777 . 224 596 . 337 1922 . . . 1642 518 814 814 1739 Parts Sabotaged . | . . . . . . . . . . . . . . . . . . . . Parts Stolen . | . . . . . . . . . . . . . . . . . . . . Parts Stripped . | . . . . . . . . . . . . . . . . . . . . Power Chain Reactions 4 | . . . . . . . . . . . 4 . . . . . . . . Alert | -11 -10 -9 -8 -8 -7 -6 -6 -6 -6 -5 -5 -4 -4 -4 -4 -4 -3 -3 -2 ------- Run | Yrd Mat Mat Mat Sto Fac Fac Low Low Dat Pro Fac Fac Was Fac Ext Cet Res Qua Res Maximum Alert Level 3 | . . . . 3 1 . . . . . 3 1 . 1 3 2 2 1 1 Low Security (%) 60 | 100 100 100 100 16 44 100 . . . . 53 . 100 60 48 . . 84 98 Level 1 22 | . . . . 59 55 . . . . . 6 100 . 39 22 15 44 15 1 Level 2 10 | . . . . 8 . . . . . . 24 . . . 4 84 55 . . Level 3 6 | . . . . 15 . . . . . . 15 . . . 23 . . . . Level 4 . | . . . . . . . . . . . . . . . . . . . . Level 5 . | . . . . . . . . . . . . . . . . . . . . High Security . | . . . . . . . . . . . . . . . . . . . . Max Security . | . . . . . . . . . . . . . . . . . . . . Peak Influence 865 | 10 30 171 68 771 356 53 . . . . 865 378 128 262 781 483 631 395 219 Initial 395 | . . . 61 . 343 53 . . . . . 378 128 47 113 395 271 325 33 Average 205 | 1 7 48 30 360 213 13 . . . . 279 375 103 152 314 432 447 91 71 Influence Increases 7556 | 60 35 377 135 1299 305 . 20 190 . 160 1284 . . 395 1324 368 604 420 580 Destroy 0b10 Robot/C 3620 | . 20 220 80 720 160 . 20 160 . 140 680 . . 40 580 160 200 240 200 Destroy 0b10 Robot/NC 285 | 60 5 20 20 35 20 . . . . . 40 . . . 30 10 10 5 30 Destroy Leader 734 | . 10 64 34 162 52 . . 30 . 20 124 . . 10 54 . 52 40 82 Allied During Kill 1315 | . . . . 222 40 . . . . . . . . . 575 170 262 46 . Successful Hack 32 | . . . . 9 . . . . . . 7 . . . . . . . 16 Disable Machine 435 | . . 30 . 30 30 . . . . . 210 . . . . . 60 45 30 Destroy Structure 475 | . . 28 1 61 3 . . . . . 178 . . . 70 28 20 44 42 Partial Spotted 45 | . . . . . . . . . . . . . . 45 . . . . . Lose Combat Pursuer 615 | . . 15 . 60 . . . . . . 45 . . 300 15 . . . 180 Influence Decreases 7368 | 60 35 230 282 544 950 110 20 190 . 160 510 406 300 231 849 622 478 940 451 Entered New Map 2105 | . . . 86 . 412 57 . . . . . 396 240 21 119 312 182 254 26 Time Decay 3757 | 60 35 230 196 304 458 53 20 190 . 160 314 10 50 190 510 120 246 356 255 Lost Part 576 | . . . . 100 . . . . . . 196 . 10 20 80 10 10 20 130 Lost Ally 780 | . . . . 140 80 . . . . . . . . . 140 180 40 160 40 Purge Threat 150 | . . . . . . . . . . . . . . . . . . 150 . Squads Dispatched 37 | . 1 1 2 6 4 . . . . . 4 1 . 2 2 . 3 6 5 Investigation 5 | . . . . 2 . . . . . . 1 1 . . . . . . 1 Extermination 9 | . . . . . 2 . . . . . 2 . . 1 . . . 1 3 Reinforcement 19 | . 1 1 1 2 2 . . . . . 1 . . 1 2 . 3 4 1 Assault 2 | . . . . 2 . . . . . . . . . . . . . . . Garrison 2 | . . . 1 . . . . . . . . . . . . . . 1 . Intercept . | . . . . . . . . . . . . . . . . . . . . Searches Triggered . | . . . . . . . . . . . . . . . . . . . . Data Miner Redirects 1 | . . . . . . . . . . . 1 . . . . . . . . Construction Impeded 4 | . . . . 2 1 . . . . . . . . . 1 . . . . Haulers Reinforced . | . . . . . . . . . . . . . . . . . . . . Active Scanning Responses . | . . . . . . . . . . . . . . . . . . . . Cargo Convoy Interrupts . | . . . . . . . . . . . . . . . . . . . . Stealth | -11 -10 -9 -8 -8 -7 -6 -6 -6 -6 -5 -5 -4 -4 -4 -4 -4 -3 -3 -2 --------- Run | Yrd Mat Mat Mat Sto Fac Fac Low Low Dat Pro Fac Fac Was Fac Ext Cet Res Qua Res Distress Signals 14 | . . 2 . 1 . . . . . . 1 . . 1 . 2 2 2 3 Communications Jammed 25 | . . . . . . . . . . . 3 . . . . . . 1 21 Distress Signals 25 | . . . . . . . . . . . 3 . . . . . . 1 21 Times Spotted 254 | . 3 18 8 32 10 1 1 8 . 7 34 1 7 22 28 10 11 18 35 Peak Tracking Total 14 | . 1 5 3 10 2 1 1 4 . 4 8 1 6 11 3 5 4 4 14 Tactical Retreats 19 | . . 1 . 3 . . . . . . 3 . 1 6 1 . . . 4 Traps | -11 -10 -9 -8 -8 -7 -6 -6 -6 -6 -5 -5 -4 -4 -4 -4 -4 -3 -3 -2 ------- Run | Yrd Mat Mat Mat Sto Fac Fac Low Low Dat Pro Fac Fac Was Fac Ext Cet Res Qua Res Traps Triggered 15 | . . . . 2 . . . . . . 1 1 . . 5 . . 1 5 Indirectly . | . . . . . . . . . . . . . . . . . . . . Trap Hack Attempts . | . . . . . . . . . . . . . . . . . . . . Triggered . | . . . . . . . . . . . . . . . . . . . . Disarmed . | . . . . . . . . . . . . . . . . . . . . Reprogrammed . | . . . . . . . . . . . . . . . . . . . . Reused . | . . . . . . . . . . . . . . . . . . . . Traps Extracted . | . . . . . . . . . . . . . . . . . . . . Installed . | . . . . . . . . . . . . . . . . . . . . Triggered . | . . . . . . . . . . . . . . . . . . . . Machines | -11 -10 -9 -8 -8 -7 -6 -6 -6 -6 -5 -5 -4 -4 -4 -4 -4 -3 -3 -2 ---------- Run | Yrd Mat Mat Mat Sto Fac Fac Low Low Dat Pro Fac Fac Was Fac Ext Cet Res Qua Res Machines Disabled 29 | . . 2 . 2 2 . . . . . 14 . . . . . 4 3 2 Max in Single Turn 6 | . . 1 . 1 1 . . . . . 6 . . . . . 1 1 2 Machines Repaired . | . . . . . . . . . . . . . . . . . . . . Machines Dismantled . | . . . . . . . . . . . . . . . . . . . . Machines Sabotaged . | . . . . . . . . . . . . . . . . . . . . Overloaded Fab Kills . | . . . . . . . . . . . . . . . . . . . . Hacking | -11 -10 -9 -8 -8 -7 -6 -6 -6 -6 -5 -5 -4 -4 -4 -4 -4 -3 -3 -2 --------- Run | Yrd Mat Mat Mat Sto Fac Fac Low Low Dat Pro Fac Fac Was Fac Ext Cet Res Qua Res Machines Accessed 28 | . 1 2 . 4 6 . 1 . 4 . 1 1 . . 2 . . 3 3 Terminals 15 | . 1 2 . 4 3 . . . . . . . . . 2 . . 3 . Fabricators 5 | . . . . . 2 . . . . . 1 1 . . . . . . 1 Repair Stations 1 | . . . . . . . . . . . . . . . . . . . 1 Recycling Units . | . . . . . . . . . . . . . . . . . . . . Scanalyzers 1 | . . . . . . . . . . . . . . . . . . . 1 Garrison Access 1 | . . . . . 1 . . . . . . . . . . . . . . Total Hacks 78 | . 2 4 . 6 13 . 1 . 29 . 2 2 . . 3 . . 8 8 Successful 50 | . 1 1 . 4 3 . 1 . 29 . 2 2 . . . . . 2 5 Failed 27 | . . 3 . 2 10 . . . . . . . . . 3 . . 6 3 Catastrophic 7 | . . . . 1 2 . . . . . . . . . 1 . . 3 . Database Lockouts 1 | . 1 . . . . . . . . . . . . . . . . . . Manual 20 | . 2 3 . 1 5 . . . . . . . . . . . . 6 3 Terminals 28 | . 2 4 . 6 5 . . . . . . . . . 3 . . 8 . Fabricators 12 | . . . . . 7 . . . . . 2 2 . . . . . . 1 Repair Stations 2 | . . . . . . . . . . . . . . . . . . . 2 Recycling Units . | . . . . . . . . . . . . . . . . . . . . Scanalyzers 5 | . . . . . . . . . . . . . . . . . . . 5 Garrison Access 1 | . . . . . 1 . . . . . . . . . . . . . . Terminal Hacks 39 | . 1 1 . 4 1 . 1 . 29 . . . . . . . . 2 . Record 12 | . . . . . . . . . 11 . . . . . . . . 1 . Part Schematic 12 | . . . . . . . . . 12 . . . . . . . . . . Robot Schematic 4 | . 1 . . . . . . . 3 . . . . . . . . . . Robot Analysis 1 | . . . . 1 . . . . . . . . . . . . . . . Prototype ID Bank 4 | . . . . 1 . . . . 3 . . . . . . . . . . Open Door 2 | . . . . 1 . . 1 . . . . . . . . . . . . Branch Access Points 1 | . . . . . 1 . . . . . . . . . . . . . . Emergency Access Points 1 | . . 1 . . . . . . . . . . . . . . . . . Unreport Threat 1 | . . . . . . . . . . . . . . . . . . 1 . Zone Layout 1 | . . . . 1 . . . . . . . . . . . . . . . Fabricator Hacks 6 | . . . . . 2 . . . . . 2 2 . . . . . . . Load Schematic 3 | . . . . . 1 . . . . . 1 1 . . . . . . . Build 3 | . . . . . 1 . . . . . 1 1 . . . . . . . Repair Station Hacks . | . . . . . . . . . . . . . . . . . . . . Recycling Unit Hacks . | . . . . . . . . . . . . . . . . . . . . Scanalyzer 3 | . . . . . . . . . . . . . . . . . . . 3 Retrieve Study 3 | . . . . . . . . . . . . . . . . . . . 3 Garrison Access Hacks . | . . . . . . . . . . . . . . . . . . . . Unauthorized Hacks 2 | . . . . . . . . . . . . . . . . . . . 2 Terminals . | . . . . . . . . . . . . . . . . . . . . Fabricators 1 | . . . . . . . . . . . . . . . . . . . 1 Liberate 1 | . . . . . . . . . . . . . . . . . . . 1 Repair Stations 1 | . . . . . . . . . . . . . . . . . . . 1 Patch 1 | . . . . . . . . . . . . . . . . . . . 1 Recycling Units . | . . . . . . . . . . . . . . . . . . . . Scanalyzers . | . . . . . . . . . . . . . . . . . . . . Garrison Access . | . . . . . . . . . . . . . . . . . . . . Data Cores Recovered 2 | . . . . . 1 . . . . . . . . . . . . 1 . Used . | . . . . . . . . . . . . . . . . . . . . Hacking Detections 18 | . 1 1 . 3 4 . . . . . 1 1 . . 2 . . 3 2 Full Trace Events 2 | . . . . . . . . . . . 1 1 . . . . . . . Feedback Events . | . . . . . . . . . . . . . . . . . . . . Feedback Blocked . | . . . . . . . . . . . . . . . . . . . . Robot Schematics Acquired 4 | . 1 . . . . . . . 3 . . . . . . . . . . Robots Built 3 | . . . . . 3 . . . . . . . . . . . . . . Authchips . | . . . . . . . . . . . . . . . . . . . . Time 99 | . . . . . 99 . . . . . . . . . . . . . . Total Robot Build Rating 6 | . . . . . 6 . . . . . . . . . . . . . . Part Schematics Acquired 12 | . . . . . . . . . 12 . . . . . . . . . . Parts Built . | . . . . . . . . . . . . . . . . . . . . Authchips . | . . . . . . . . . . . . . . . . . . . . Time 297 | . . . . . . . . . . . 169 128 . . . . . . . Total Part Build Rating . | . . . . . . . . . . . . . . . . . . . . Part Studies Acquired 3 | . . . . . . . . . . . . . . . . . . . 3 Parts Repaired . | . . . . . . . . . . . . . . . . . . . . Time . | . . . . . . . . . . . . . . . . . . . . Parts Recycled . | . . . . . . . . . . . . . . . . . . . . Recycled Matter . | . . . . . . . . . . . . . . . . . . . . Retrieved Matter . | . . . . . . . . . . . . . . . . . . . . Retrieved Components . | . . . . . . . . . . . . . . . . . . . . Parts Scanalyzed . | . . . . . . . . . . . . . . . . . . . . Part Schematics Acquired . | . . . . . . . . . . . . . . . . . . . . Parts Damaged . | . . . . . . . . . . . . . . . . . . . . Bothacking | -11 -10 -9 -8 -8 -7 -6 -6 -6 -6 -5 -5 -4 -4 -4 -4 -4 -3 -3 -2 ------------ Run | Yrd Mat Mat Mat Sto Fac Fac Low Low Dat Pro Fac Fac Was Fac Ext Cet Res Qua Res Used RIF Installer . | . . . . . . . . . . . . . . . . . . . . Robots Hacked . | . . . . . . . . . . . . . . . . . . . . Non-combat . | . . . . . . . . . . . . . . . . . . . . Combat . | . . . . . . . . . . . . . . . . . . . . Robot Hacks Applied . | . . . . . . . . . . . . . . . . . . . . Relay Couplers Released . | . . . . . . . . . . . . . . . . . . . . Fabnet Peak Effective % . | . . . . . . . . . . . . . . . . . . . . Robots Rewired 18 | . . . . . . . . . . . . . . . 18 . . . . Allies Hacked 1 | . . . . . . . . . . . . . . . 1 . . . . Hacks Repelled . | . . . . . . . . . . . . . . . . . . . . Allies | -11 -10 -9 -8 -8 -7 -6 -6 -6 -6 -5 -5 -4 -4 -4 -4 -4 -3 -3 -2 -------- Run | Yrd Mat Mat Mat Sto Fac Fac Low Low Dat Pro Fac Fac Was Fac Ext Cet Res Qua Res Total Allies 52 | . . . . 12 3 . . . . . . . . . 35 . . . 2 Largest Group 25 | . . . . 10 5 2 . . . . . . . . 25 23 14 9 2 Highest-Rated Group 1082 | . . . . 173 62 20 . . . . . . . . 1082 982 568 394 128 Highest-Rated Ally 64 | . . . . 31 16 10 . . . . . . . . 51 51 51 51 64 Total Orders . | . . . . . . . . . . . . . . . . . . . . Ally Attacks 465 | . . . . 112 22 . . . . . . . . . 169 66 50 43 3 Total Damage 10036 | . . . . 1493 247 . . . . . . . . . 4480 1608 1190 852 166 Kills 69 | . . . . 17 1 . . . . . . . . . 31 6 8 5 1 Allies Corrupted 2 | . . . . . . . . . . . . . . . 1 . . . 1 Allies Melted . | . . . . . . . . . . . . . . . . . . . . Intel | -11 -10 -9 -8 -8 -7 -6 -6 -6 -6 -5 -5 -4 -4 -4 -4 -4 -3 -3 -2 ------- Run | Yrd Mat Mat Mat Sto Fac Fac Low Low Dat Pro Fac Fac Was Fac Ext Cet Res Qua Res Active Infowar (turns) 3851 | 210 138 625 434 188 . . . . . . 351 . . . 351 . 161 765 628 Optics 363 | . . . . . . . . . . . . . . . . . 161 202 . Sensors 351 | . . . . . . . . . . . . . . . 351 . . . . Seismic 1595 | 210 138 625 434 188 . . . . . . . . . . . . . . . Jamming 1542 | . . . . . . . . . . . 351 . . . . . . 563 628 Robot Analysis Total 1 | . . . . 1 . . . . . . . . . . . . . . . Derelict Logs Recovered 2 | . . . . . . . 2 . . . . . . . . . . . . Drone Launches . | . . . . . . . . . . . . . . . . . . . . Drone Recoveries . | . . . . . . . . . . . . . . . . . . . . Exploration | -11 -10 -9 -8 -8 -7 -6 -6 -6 -6 -5 -5 -4 -4 -4 -4 -4 -3 -3 -2 ------------- Run | Yrd Mat Mat Mat Sto Fac Fac Low Low Dat Pro Fac Fac Was Fac Ext Cet Res Qua Res Turns Passed 10884 | 296 138 625 434 694 1148 252 561 664 143 571 1089 25 103 387 1399 257 520 829 749 Spaces Moved 6391 | 135 102 276 243 289 577 130 284 331 76 279 547 47 148 640 607 136 349 570 625 Core 1003 | 10 . . . 8 . . . . . . 24 47 148 555 14 . . . 197 Treads 197 | . . . . . . . . . . . . . . . 197 . . . . Legs 4826 | 125 102 276 243 275 577 130 284 331 76 279 523 . . . 131 136 349 570 419 Wheels 239 | . . . . 6 . . . . . . . . . . 233 . . . . Hover 126 | . . . . . . . . . . . . . . 85 32 . . . 9 Flight . | . . . . . . . . . . . . . . . . . . . . Fastest Speed 50 | 50 120 120 120 115 120 190 190 190 190 190 50 50 50 50 50 120 120 120 50 Average Speed 135 | 114 120 178 120 163 185 190 190 190 190 190 152 50 50 51 139 120 120 120 93 Slowest Speed 610 | 120 120 190 120 550 190 190 190 190 190 190 610 50 50 60 550 120 120 120 120 Overloaded Moves . | . . . . . . . . . . . . . . . . . . . . Propulsion Burnouts . | . . . . . . . . . . . . . . . . . . . . Robots Hopped . | . . . . . . . . . . . . . . . . . . . . Potential Cave-ins . | . . . . . . . . . . . . . . . . . . . . Cave-ins Triggered . | . . . . . . . . . . . . . . . . . . . . Exploration Rate (%) 36 | 5 27 29 24 53 20 2 41 47 68 51 16 3 79 23 72 67 14 63 23 Regions Visited 19 Branch Regions 8 Pre-discovered Areas 2 | . . . . . . . 1 . 1 . . . . . . . . . . Known Exits Taken 1 | . . . . . . . . . . . 1 . . . . . . . . Unknown Exits Taken 16 | 1 1 1 1 1 1 1 1 1 1 1 . . . 1 1 1 1 1 . Scrap Searched 6 | . . . . . . . 2 3 . 1 . . . . . . . . . Spaces Dug 21 | . . . . . . . 3 . . . 16 . . . . . . 2 . Terrain Destroyed 357 | . . 29 . 68 2 . 4 34 . 15 138 . . . 12 8 10 22 15 Melee . | . . . . . . . . . . . . . . . . . . . . Projectile 101 | . . 1 . 5 2 . 4 3 . . 19 . . . 12 8 10 22 15 AOE 256 | . . 28 . 63 . . . 31 . 15 119 . . . . . . . . Terrain Rammed . | . . . . . . . . . . . . . . . . . . . . Walls Destroyed . | . . . . . . . . . . . . . . . . . . . . Machines Disabled . | . . . . . . . . . . . . . . . . . . . . Actions | -11 -10 -9 -8 -8 -7 -6 -6 -6 -6 -5 -5 -4 -4 -4 -4 -4 -3 -3 -2 --------- Run | Yrd Mat Mat Mat Sto Fac Fac Low Low Dat Pro Fac Fac Was Fac Ext Cet Res Qua Res Total 7871 | 205 110 345 342 414 614 136 296 345 75 305 690 48 176 692 1083 204 414 662 715 Wait 593 | 23 . 14 57 40 7 . 1 . . . 36 . 26 25 241 50 22 23 28 Move 6373 | 134 101 275 242 288 576 129 283 330 75 278 546 47 147 639 606 135 348 569 625 Hop . | . . . . . . . . . . . . . . . . . . . . Pick Up 58 | 6 4 7 8 1 3 2 1 . . 5 3 . 1 5 1 1 4 6 . Fast Attach 103 | 7 . . 2 10 2 . . . . . 11 . 1 7 33 3 2 4 21 Attach 34 | . . 2 1 4 1 2 . . . 2 9 1 . 2 5 . 1 3 1 Detach 2 | . . . . . . . . . . . . . . 2 . . . . . Swap 99 | . . 11 3 14 4 2 4 3 . 3 18 . . . 14 2 10 8 3 Drop 68 | 1 1 4 6 5 4 1 1 1 . 3 3 . 1 6 8 2 10 7 4 Fire 369 | 34 4 32 23 51 17 . 6 11 . 14 63 . . . 26 11 17 30 30 Melee 7 | . . . . . . . . . . . . . . 3 4 . . . . Ram 7 | . . . . . . . . . . . 1 . . 3 . . . . 3 Kick 1 | . . . . 1 . . . . . . . . . . . . . . . Crush 4 | . . . . . . . . . . . . . . . 4 . . . . Escape Stasis 20 | . . . . . . . . . . . . . . . 8 . . 12 . Rewire 133 | . . . . . . . . . . . . . . . 133 . . . . Trap . | . . . . . . . . . . . . . . . . . . . . Miscellaneous . | . . . . . . . . . . . . . . . . . . . . Route ------- -11/Scrapyard -10/Materials (discovered 2 exits: *Mat / [*Min]) -9/Materials -8/Materials -8/Storage -7/Factory (discovered 3 exits: [*Fac] / Low x2) -6/Factory -6/Lower Caves -6/Lower Caves -6/Data Miner -5/Proximity Caves -5/Factory -4/Factory -4/Waste -4/Factory -4/Extension (discovered 2 exits: [*Res] / *Cet) -4/Cetus (discovered 2 exits: [*Res] / [*Arc]) -3/Research -3/Quarantine -2/Research History --------- Turn | Location | Event 5 | -11/Scrapyard | Discovered new exit (range 15) 297 | -11/Scrapyard | Entered Materials 309 | -10/Materials | Central database locked down 317 | -10/Materials | Build established: Mutant 346 | -10/Materials | Discovered new exit (range 13) 411 | -10/Materials | Discovered new exit (range 7) 435 | -10/Materials | Entered another Materials area 435 | -9/Materials | Evolved 2 slots: Propulsion x1, Utility x1 1046 | -9/Materials | Discovered new exit (range 8) 1060 | -9/Materials | Entered another Materials area 1060 | -8/Materials | Evolved 2 slots: Propulsion x1, Utility x1 1353 | -8/Materials | Build established: Scavenger-Mutant 1354 | -8/Materials | Garrison activated, responded to threat 1473 | -8/Materials | Discovered new exit (range 15) 1494 | -8/Materials | Entered Storage 1538 | -8/Storage | Met a pair of Derelict thieves 1651 | -8/Storage | Lost 3 parts (2n1u) 1654 | -8/Storage | Destroyed 9 combat bots 1735 | -8/Storage | Lost 7 parts (1p3n1u2w) 1893 | -8/Storage | Build established: Mutant 1982 | -8/Storage | Assisted by bots powering up and referring to "LRC-V3" 2118 | -8/Storage | Lost 5 allies 2159 | -8/Storage | Discovered new exit (range 15) 2188 | -8/Storage | Entered Factory 2188 | -7/Factory | Accompanied by 3 allies 2188 | -7/Factory | Evolved 2 slots: Utility x1, Weapon x1 2524 | -7/Factory | Fabricated B-36 Bruiser? 2826 | -7/Factory | Build established: Commander-Gunner 2991 | -7/Factory | Lost 3 allies 3131 | -7/Factory | Identified exit to Lower Caves 3258 | -7/Factory | Build established: Gunner 3321 | -7/Factory | Discovered new exit (range 8) 3336 | -7/Factory | Entered another Factory area 3336 | -6/Factory | Accompanied by 2 allies 3336 | -6/Factory | Evolved 2 slots: Utility x2 3431 | -6/Factory | Discovered new exit (range 16) 3588 | -6/Factory | Entered Lower Caves 3589 | -6/Lower Caves | Encountered a Warlord checkpoint 3891 | -6/Lower Caves | Learned location of 1 exit from Factory 3895 | -6/Lower Caves | Attracted the attention of an 0b10 checkpoint 4126 | -6/Lower Caves | Discovered new exit (range 12) 4149 | -6/Lower Caves | Entered another Lower Caves area 4807 | -6/Lower Caves | Discovered new exit (range 5) 4813 | -6/Lower Caves | Entered Data Miner 4813 | -6/Data Miner | Discovered new exit (range 6) 4850 | -6/Data Miner | Met Data Miner 4882 | -6/Data Miner | Acquired the access code to Warlord's prototype stash 4882 | -6/Data Miner | Learned location of Section 7 (-2) 4912 | -6/Data Miner | Received God Mode back door access code from Data Miner 4956 | -6/Data Miner | Entered Proximity Caves 4958 | -5/Proximity Caves | Attracted the attention of an 0b10 checkpoint 5500 | -5/Proximity Caves | Discovered new exit (range 14) 5527 | -5/Proximity Caves | Entered Factory 5527 | -5/Factory | Evolved 2 slots: Power x1, Utility x1 5528 | -5/Factory | Identified exit to Factory 5952 | -5/Factory | System corruption reached 10% 5953 | -5/Factory | Lost 3 parts (3n) 6049 | -5/Factory | System corruption reached 30% 6200 | -5/Factory | Destroyed 9 combat bots 6252 | -5/Factory | Build established: Scavenger-Gunner 6456 | -5/Factory | Destroyed 9 combat bots 6488 | -5/Factory | Lost 7 parts (3n2u2w) 6531 | -5/Factory | Assembled infested ambush trap array 6556 | -5/Factory | Incoming assault squad redirected 6575 | -5/Factory | Released all parts (11) 6604 | -5/Factory | Lost 6 parts (1p1n3u1w) 6608 | -5/Factory | Core integrity fell below 50% 6616 | -5/Factory | Entered another Factory area 6616 | -4/Factory | Evolved 2 slots: Propulsion x2 6641 | -4/Factory | Sucked down chute 6641 | -4/Factory | Entered Waste 6645 | -4/Waste | Spotted C-40 Crusher 6645 | -4/Waste | Spotted C-40 Crusher 6646 | -4/Waste | Lost 4 parts (4n) 6661 | -4/Waste | Spotted C-40 Crusher 6663 | -4/Waste | Spotted C-40 Crusher 6667 | -4/Waste | Spotted C-40 Crusher 6669 | -4/Waste | Spotted C-40 Crusher 6715 | -4/Waste | Crushed by Compactor (1 part destroyed) 6733 | -4/Waste | Discovered new exit (range 12) 6744 | -4/Waste | Entered Factory 6840 | -4/Factory | Build established: Mutant 7123 | -4/Factory | Discovered new exit (range 12) 7131 | -4/Factory | Entered Extension 7203 | -4/Extension | Lost 3 parts (1n1u1w) 7216 | -4/Extension | Rescued a captive Derelict 7217 | -4/Extension | Rescued a captive Derelict 7272 | -4/Extension | Rescued a captive Derelict 7273 | -4/Extension | Rescued a captive Derelict 7310 | -4/Extension | Rescued a captive Derelict 7311 | -4/Extension | Rescued a captive Derelict 7387 | -4/Extension | Rescued a captive Derelict 7387 | -4/Extension | Rescued a captive Derelict 7521 | -4/Extension | Rescued a captive Derelict 7522 | -4/Extension | Rescued a captive Derelict 7550 | -4/Extension | Rescued a captive Derelict 7551 | -4/Extension | Rescued a captive Derelict 7582 | -4/Extension | Rescued a captive Derelict 7588 | -4/Extension | Rescued a captive Derelict 7620 | -4/Extension | Spotted B-86 Titan 7629 | -4/Extension | Destroyed B-86 Titan 7640 | -4/Extension | Spotted B-86 Titan 7660 | -4/Extension | Core integrity fell below 50% 7673 | -4/Extension | Allies destroyed B-86 Titan 7699 | -4/Extension | Lost 4 parts (1n3u) 7892 | -4/Extension | Build established: Scavenger-Tank 7905 | -4/Extension | Rescued a captive Derelict 7944 | -4/Extension | Rescued a captive Derelict 8192 | -4/Extension | Lost 3 allies 8234 | -4/Extension | Rescued a captive Derelict 8312 | -4/Extension | Build established: Commander-Tank 8344 | -4/Extension | Discovered new exit (range 10) 8346 | -4/Extension | Discovered new exit (range 6) 8530 | -4/Extension | Entered Cetus 8530 | -4/Cetus | Accompanied by 23 allies 8540 | -4/Cetus | Spotted Cetus Guard 8540 | -4/Cetus | Spotted Cetus Guard 8544 | -4/Cetus | Destroyed Cetus Guard 8548 | -4/Cetus | Spotted Cetus Guard 8556 | -4/Cetus | Spotted Cetus Guard 8565 | -4/Cetus | Destroyed Cetus Guard 8565 | -4/Cetus | Allies destroyed Cetus Guard 8572 | -4/Cetus | Allies destroyed Cetus Guard 8596 | -4/Cetus | Lost 5 allies 8655 | -4/Cetus | Discovered new exit (range 15) 8675 | -4/Cetus | Spotted Cetus Guard 8675 | -4/Cetus | Spotted Cetus Guard 8679 | -4/Cetus | Spotted Cetus Guard 8692 | -4/Cetus | Spotted Cetus Guard 8693 | -4/Cetus | Allies destroyed Cetus Guard 8698 | -4/Cetus | Allies destroyed Cetus Guard 8700 | -4/Cetus | Allies destroyed Cetus Guard 8702 | -4/Cetus | Destroyed Cetus Guard 8721 | -4/Cetus | Discovered new exit (range 16) 8730 | -4/Cetus | Met Revision 17 8731 | -4/Cetus | Lost 4 allies 8787 | -4/Cetus | Entered Research 8787 | -3/Research | Accompanied by 14 allies 8787 | -3/Research | Evolved 2 slots: Utility x2 8857 | -3/Research | Build established: Scavenger-Tank 8882 | -3/Research | Spotted B-86 Titan 8892 | -3/Research | Allies destroyed B-86 Titan 8987 | -3/Research | Revision forces began assault on 0b10 9055 | -3/Research | Met up with Revision 17++ 9080 | -3/Research | Spotted B-86 Titan 9289 | -3/Research | Discovered new exit (range 7) 9307 | -3/Research | Entered Quarantine 9307 | -3/Quarantine | Accompanied by 9 allies 9312 | -3/Quarantine | Garrison activated, responded to threat 9366 | -3/Quarantine | Lost 3 allies 9617 | -3/Quarantine | Found Alien Artifact 9619 | -3/Quarantine | Identified Subatomic Replicator 9619 | -3/Quarantine | Used Subatomic Replicator to replicate Centrium Medium Armor Plating 9730 | -3/Quarantine | Discovered new exit (range 7) 9860 | -3/Quarantine | Build established: Scavenger-Gunner 9954 | -3/Quarantine | Found Alien Artifact 9954 | -3/Quarantine | Identified Terrabomb 9954 | -3/Quarantine | Used Terrabomb 10015 | -3/Quarantine | Scanned by Researcher 10128 | -3/Quarantine | System corruption reached 10% 10136 | -3/Quarantine | Entered Research 10136 | -2/Research | Evolved 2 slots: Utility x2 10260 | -2/Research | Found Prototype Processor 10260 | -2/Research | Identified Exp. Core Analyzer 10775 | -2/Research | Released all parts (11) 10783 | -2/Research | Core integrity fell below 50% 10788 | -2/Research | System corruption reached 10% 10805 | -2/Research | Lost 12 parts (2p4n3u3w) 10834 | -2/Research | Core integrity fell below 20% 10885 | -2/Research | Destroyed by P-80 Master with Gamma Rifle Last Messages --------------- 10787_ Field Manipulator disabled. 10788_ K-01 Serf collects debris. 10790_ Slug penetrates Wall. 10790_ Penetrated by Slug. 10791_ P-80 Master resets K-01 Serf, system corruption cleaned. 10823_ Acquired Imp. Antigrav System. 10825_ Acquired 10 matter. 10827_ Acquired Imp. Antigrav System. 10828_ Acquired 4 matter. 10831_ System corrupted: Heat flow error (+289). 10832_ Dropped Imp. Antigrav System. 10838_ Penetrated by Slug. 10862_ ALERT: Potential suspicious activity detected, Programmers report to Research Zone 6R. 10869_ System corrupted: Matter fused (-10). 10875_ Drone sends a signal. 10879_ Slammed into P-80 Master. 10880_ Drone sends a signal. 10882_ Particle Synthesizer disabled. 10885_ System corrupted: Component data lost. Map ----- +----------------------------------------------------+ | ???? ???????????# """ """ ????????????## | | ???#########???????????# ?###########??? | | ???????????????????????# ?# ?? | | ???????????????????????# """ """ ?# ?? | | ???????????????????????# """ """ # [ # | | ???????????????????????# """ """ # # | | ???????????????????????# # + | | ???????????????????????# # # | | ???????????????????????###+#####+##+# # | | ?????????????????????????# #???# # ?# | | ?????????????????????????# #???# # ?# | | ?????????????????????????# #???# # ??# | | ?????????????????????????# #???# ^# ??# | | ?????????????????????????# #???# # ???# | | ?????????????????????????# #???# ##########?### | | ?????????????????????????# ##### #???# = ??# | | ?????????????????????????# #???# # | | ?????????????????????????# p #???# + | | ?????????????????????????# #???# # | | ?????????????????????????# #???# ??# | | ?????????????????????????# """ #???# ????## | | ?????????????????????????# "" #???#???????# | | ?????????????????????????# """ ############# | | ?????????????????????????# """ | | ????????????????????????## """ ######## | | ????????????????????????#@ #??????## | | ????????????????????????+ #???????? | | ????????????????????????# #???????? | | ????????????????????????##################???????? | | ?????????????????????????????????????????????????? | | ?????????????????????????????????????????????????? | | | | | | | | | | | | | | | | | | | | | | | | | | | | | | | | | | | | | | | +----------------------------------------------------+ Best States ------------- Heat Dissipation 160 Energy Generation 39 Energy Capacity 900 Matter Stores 300 Matter Capacity 300 Sight Range 22 Robot Scan Range 15 Terrain Scan Density 10 Jamming Range 16 Base Temperature (-) 200 Armor Coverage 450 Phase Shifting 10 Evasion (%) 73 Targeting Accuracy 28 Melee Accuracy 8 Target Analysis 8 Core Analysis 11 Recoil Reduction 2 Offensive Hacking 12 Item Schematics ----------------- Biometal Leg | -6/Data Miner | Free Matter Neutralizer | -6/Data Miner | Free Imp. Powered Armor | -6/Data Miner | Free Adv. Thermal Generator | -6/Data Miner | Free Dispersion Rifle | -6/Data Miner | Free Imp. Remote Force Field | -6/Data Miner | Free Centrium Wheel | -6/Data Miner | Free Cld. Plasma Rifle | -6/Data Miner | Free Imp. Matter Compressor | -6/Data Miner | Free Enh. Armored Leg | -6/Data Miner | Free Lgt. Regenerative Plating | -6/Data Miner | Free Combat Drone Bay | -6/Data Miner | Free Robot Schematics ------------------ M-13 Machinist | -10/Materials | Hacked I-36 Angel | -6/Data Miner | Free A-15 Conveyor | -6/Data Miner | Free B-60 Warrior | -6/Data Miner | Free Fabricated ------------ B-36 Bruiser | x3 | -7/Factory | Preloaded Repaired ---------- Nothing Studied --------- Myomer Leg | -2/Research | Hacked Matter Neutralizer | -2/Research | Hacked Linear Accelerator | -2/Research | Hacked Alien Tech Used ----------------- Subatomic Replicator Terrabomb Achievements -------------- Revolutionary Research Challenges ------------ None Game ------ Seed BiomechanicalLightTrap Manual? 0 Play Time 01:17:41 Cumulative 300.6 hours Start 2025.12.22 @ 23:54:35 End 2025.12.23 @ 12:46:47 Sessions 3 Manual Loads 0 Difficulty Rogue Special Mode None Game No. 641 Rogue 641 Adventurer 0 Explorer 0 Win Type - Total 20 Types 14/0/4/1/1/0/0/0/0/0 Lore% 81 Gallery% 72 Achievement% 50 Wizard Run 0 Options --------- Layout 0 ASCII 0 Keyboard 0 Movement Numpad Keybinds 0 Fullscreen 2 Font 18/Terminus Map View 76x50 Zoom Use 0% Tactical HUD 1 Map Filters NONE Filters SATURATION(100) Steam 1 RUN: 6468d2a0-19be-49bc-b8a5-75a7d2526eb1